[Event "EYCC O18-ch 2024"]
[Site "Prague"]
[Date "2024.08.22"]
[Round "1.8"]
[White "Sinitsyn, Anton"]
[Black "Slagboom, Leandro"]
[Result "0-1"]
[ECO "D35"]
[WhiteElo "2005"]
[BlackElo "2331"]
[Annotator "RC"]
[PlyCount "84"]
[EventDate "2024.08.19"]
[EventType "swiss"]
[EventCountry "CZE"]
[SourceTitle "playchess.com"]
[Source "ChessBase"]
[SourceQuality "1"]
[TimeControl "5400+30"]

1. c4 {[%emt 0:00:08]} e6 {[%emt 0:00:17]} 2. Nc3 {[%emt 0:00:28]} d5 {[%emt 0:00:06]} 3. d4 {[%emt 0:00:05]} Nf6 {[%emt 0:00:15]} 4. cxd5 {[%emt 0:00:33]} exd5 {[%emt 0:00:06]} 5. Bg5 {[%emt 0:00:31]} Be7 {[%emt 0:00:18]} 6. e3 {[%emt 0:01:12]} h6 {[%emt 0:00:06]} 7. Bh4 {[%emt 0:00:05]} Bg4 {[%emt 0:00:07]} 8. f3 {[%emt 0:14:52]} Be6 {[%emt 0:01:00]} 9. Bd3 {[%emt 0:00:49]} c5 {[%emt 0:00:21]} 10. Nge2 {[%emt 0:01:36]} Nc6 {[%emt 0:00:21]} 11. O-O {[%emt 0:10:01]} O-O {[%emt 0:02:30]} 12. Kh1 {[%emt 0:01:25]} cxd4 {[%emt 0:01:36]} 13. exd4 {[%emt 0:03:41]} Rc8 {[%emt 0:01:34]} 14. Rc1 {[%emt 0:03:04]} Re8 {[%emt 0:02:42]} 15. Bb1 {[%emt 0:00:49]} Qd7 {[%emt 0:04:41]} 16. Qd3 {[%emt 0:14:08]} g6 {[%emt 0:02:59]} 17. Qd2 {[%emt 0:02:18]} Kg7 {[%emt 0:10:17]} 18. Bf2 {[%emt 0:08:22]} Bf8 {[%emt 0:15:15]} 19. Rfe1 {[%emt 0:02:32]} Bf5 {[%emt 0:07:16]} 20. Bxf5 {[%emt 0:03:01]} Qxf5 {[%emt 0:00:06]} 21. Ng3 {[%emt 0:00:31]} Qd7 {[%emt 0:01:38]} 22. Rxe8 {[%emt 0:00:49]} Rxe8 {[%emt 0:01:32]} 23. Re1 {[%emt 0:01:20]} Rc8 {[%emt 0:00:43]} 24. Nge2 {[%emt 0:05:38]} Ne7 {[%emt 0:21:01]} 25. Nf4 {[%emt 0:02:51]} Nf5 {[%emt 0:01:58]} 26. Nd3 {[%emt 0:00:37]} Qd8 {[%emt 0:05:22]} 27. Ne5 {[%emt 0:01:54]} Bb4 {[%emt 0:03:01]} 28. Rc1 {[%emt 0:00:32]} h5 {[%emt 0:02:51]} 29. a3 {[%emt 0:00:49]} Ba5 {[%emt 0:00:38]} 30. Qd3 {[%emt 0:02:30]} a6 {[%emt 0:00:31]} 31. Rc2 {[%emt 0:02:18]} Qc7 {[%emt 0:00:52]} 32. g4 {[%emt 0:02:26]} hxg4 {[%emt 0:00:41]} 33. fxg4 {[%emt 0:00:07]} Nd6 {[%emt 0:01:42]} 34. Be1 {[%emt 0:03:37]} Nde4 {[%emt 0:04:27]} 35. Rc1 {[%emt 0:01:50]} Nd7 {[%emt 0:04:29]} 36. Nxd7 {[%emt 0:07:11]} Qxd7 {[%emt 0:00:12]} 37. Qf3 {[%emt 0:00:14]} Bxc3 {[%emt 0:01:40]} 38. bxc3 {[%emt 0:01:23]} b5 {[%emt 0:01:38]} 39. a4 {[%emt 0:01:59]} g5 {[%emt 0:01:28]} 40. axb5 {[%emt 0:01:00]} Qxb5 {[%emt 0:01:25]} 41. Rc2 {[%emt 0:01:02]} Re8 {[%emt 0:00:41]} 42. Qe2 {[%emt 0:00:39]} Ng3+ {[%emt 0:00:10]} 0-1

[Event "EYCC O18-ch 2024"]
[Site "Prague"]
[Date "2024.08.22"]
[Round "1.9"]
[White "Borrmann, Laurenz"]
[Black "Salgovic, Simon"]
[Result "1-0"]
[ECO "E73"]
[WhiteElo "2427"]
[BlackElo "2144"]
[Annotator "RC"]
[PlyCount "115"]
[EventDate "2024.08.19"]
[EventType "swiss"]
[EventCountry "CZE"]
[SourceTitle "playchess.com"]
[Source "ChessBase"]
[SourceQuality "1"]
[TimeControl "5400+30"]

1. d4 {[%emt 0:00:12]} Nf6 {[%emt 0:00:09]} 2. c4 {[%emt 0:00:10]} g6 {[%emt 0:00:05]} 3. Nc3 {[%emt 0:00:15]} Bg7 {[%emt 0:00:10]} 4. e4 {[%emt 0:00:09]} d6 {[%emt 0:00:08]} 5. Be2 {[%emt 0:00:08]} e5 {[%emt 0:08:29]} 6. dxe5 {[%emt 0:06:37]} dxe5 {[%emt 0:01:06]} 7. Qxd8+ {[%emt 0:00:21]} Kxd8 {[%emt 0:00:30]} 8. Nf3 {[%emt 0:02:31]} Nbd7 {[%emt 0:12:44]} 9. O-O {[%emt 0:01:59]} c6 {[%emt 0:09:28]} 10. Rd1 {[%emt 0:15:33]} Kc7 {[%emt 0:35:25]} 11. Rb1 {[%emt 0:03:50]} Re8 {[%emt 0:04:18]} 12. b4 {[%emt 0:02:50]} Nf8 {[%emt 0:06:22]} 13. Ng5 {[%emt 0:06:43]} Be6 {[%emt 0:07:07]} 14. h3 {[%emt 0:17:53]} h6 {[%emt 0:01:45]} 15. Nf3 {[%emt 0:03:06]} Nh5 {[%emt 0:00:40]} 16. Be3 {[%emt 0:02:15]} Nf4 {[%emt 0:01:38]} 17. Bf1 {[%emt 0:00:25]} g5 {[%emt 0:03:22]} 18. Bc5 {[%emt 0:04:10]} Red8 {[%emt 0:04:05]} 19. Rxd8 {[%emt 0:04:32]} Kxd8 {[%emt 0:01:40]} 20. b5 {[%emt 0:01:02]} Nd7 {[%emt 0:00:38]} 21. Bd6 {[%emt 0:01:54]} c5 {[%emt 0:00:39]} 22. Rd1 {[%emt 0:02:21]} Ke8 {[%emt 0:00:27]} 23. Kh2 {[%emt 0:00:53]} Ng6 {[%emt 0:00:34]} 24. a4 {[%emt 0:05:50]} Nb6 {[%emt 0:00:29]} 25. Nd2 {[%emt 0:01:43]} Bf8 {[%emt 0:00:30]} 26. Bxf8 {[%emt 0:00:43]} Kxf8 {[%emt 0:00:29]} 27. a5 {[%emt 0:00:12]} Nd7 {[%emt 0:00:31]} 28. Nd5 {[%emt 0:01:28]} Rc8 {[%emt 0:00:30]} 29. Nb1 {[%emt 0:01:52]} Bxd5 {[%emt 0:00:25]} 30. cxd5 {[%emt 0:00:17]} Nf6 {[%emt 0:00:36]} 31. Nd2 {[%emt 0:01:07]} Ke7 {[%emt 0:00:30]} 32. Be2 {[%emt 0:02:48]} Ne8 {[%emt 0:00:29]} 33. Bg4 {[%emt 0:00:15]} Rd8 {[%emt 0:00:31]} 34. Rc1 {[%emt 0:01:36]} b6 {[%emt 0:00:29]} 35. axb6 {[%emt 0:00:09]} axb6 {[%emt 0:00:05]} 36. Nc4 {[%emt 0:00:04]} Nd6 {[%emt 0:00:29]} 37. Nxb6 {[%emt 0:00:12]} Rb8 {[%emt 0:00:57]} 38. Na4 {[%emt 0:00:12]} h5 {[%emt 0:00:29]} 39. Be2 {[%emt 0:02:12]} Nf4 {[%emt 0:00:30]} 40. Bf1 {[%emt 0:00:30]} Nxe4 {[%emt 0:00:25]} 41. Nxc5 {[%emt 0:01:05]} Nxc5 {[%emt 0:00:35]} 42. Rxc5 {[%emt 0:00:06]} Kd6 {[%emt 0:00:30]} 43. Rc6+ {[%emt 0:00:15]} Kxd5 {[%emt 0:00:28]} 44. Rf6 {[%emt 0:00:07]} Rb7 {[%emt 0:00:33]} 45. g3 {[%emt 0:01:45]} Ne6 {[%emt 0:00:27]} 46. Rh6 {[%emt 0:00:25]} Kd4 {[%emt 0:00:33]} 47. Rxh5 {[%emt 0:00:21]} e4 {[%emt 0:00:29]} 48. h4 {[%emt 0:01:35]} f6 {[%emt 0:00:31]} 49. Rh8 {[%emt 0:00:58]} f5 {[%emt 0:00:30]} 50. h5 {[%emt 0:01:12]} f4 {[%emt 0:00:30]} 51. Re8 {[%emt 0:01:35]} Rb6 {[%emt 0:00:28]} 52. h6 {[%emt 0:01:12]} Nc7 {[%emt 0:00:20]} 53. Rh8 {[%emt 0:00:06]} f3 {[%emt 0:00:38]} 54. Kg1 {[%emt 0:00:58]} e3 {[%emt 0:00:32]} 55. Rd8+ {[%emt 0:00:23]} Ke4 {[%emt 0:00:32]} 56. h7 {[%emt 0:00:21]} Rh6 {[%emt 0:00:29]} 57. Bd3+ {[%emt 0:00:09]} Ke5 {[%emt 0:00:10]} 58. fxe3 {[%emt 0:00:06]} 1-0

[Event "EYCC O18-ch 2024"]
[Site "Prague"]
[Date "2024.08.22"]
[Round "1.9"]
[White "Babula, Vlastimil"]
[Black "Zadrapa, Jakub"]
[Result "1/2-1/2"]
[ECO "C50"]
[WhiteElo "2326"]
[BlackElo "1999"]
[Annotator "RC"]
[PlyCount "132"]
[EventDate "2024.08.19"]
[EventType "swiss"]
[EventCountry "CZE"]
[SourceTitle "playchess.com"]
[Source "ChessBase"]
[SourceQuality "1"]
[TimeControl "5400+30"]

1. e4 {[%emt 0:00:04]} e5 {[%emt 0:00:15]} 2. Nf3 {[%emt 0:00:06]} Nc6 {[%emt 0:00:08]} 3. Bc4 {[%emt 0:00:05]} Nf6 {[%emt 0:00:17]} 4. d3 {[%emt 0:00:06]} Bc5 {[%emt 0:00:24]} 5. Bg5 {[%emt 0:00:50]} h6 {[%emt 0:02:16]} 6. Bh4 {[%emt 0:00:11]} d6 {[%emt 0:01:35]} 7. c3 {[%emt 0:01:46]} a5 {[%emt 0:04:46]} 8. Nbd2 {[%emt 0:02:10]} Qe7 {[%emt 0:09:25]} 9. a4 {[%emt 0:12:23]} O-O {[%emt 0:08:51]} 10. h3 {[%emt 0:01:35]} Be6 {[%emt 0:03:10]} 11. Qb3 {[%emt 0:00:27]} Bxc4 {[%emt 0:07:58]} 12. Nxc4 {[%emt 0:02:32]} g5 {[%emt 0:01:34]} 13. Bg3 {[%emt 0:00:51]} Qd7 {[%emt 0:01:26]} 14. O-O-O {[%emt 0:10:06]} b5 {[%emt 0:16:32]} 15. axb5 {[%emt 0:02:00]} Ne7 {[%emt 0:00:44]} 16. Qa4 {[%emt 0:10:54]} Rfb8 {[%emt 0:02:28]} 17. d4 {[%emt 0:04:50]} exd4 {[%emt 0:01:42]} 18. e5 {[%emt 0:00:19]} Ne4 {[%emt 0:04:40]} 19. exd6 {[%emt 0:01:27]} cxd6 {[%emt 0:03:19]} 20. Nxd4 {[%emt 0:00:59]} Nxg3 {[%emt 0:08:21]} 21. fxg3 {[%emt 0:00:33]} Bxd4 {[%emt 0:02:11]} 22. Rxd4 {[%emt 0:00:34]} Nf5 {[%emt 0:01:23]} 23. Rd5 {[%emt 0:05:05]} Nxg3 {[%emt 0:01:33]} 24. Rhd1 {[%emt 0:03:32]} Ne2+ {[%emt 0:03:47]} 25. Kb1 {[%emt 0:00:21]} Nf4 {[%emt 0:01:10]} 26. Rxd6 {[%emt 0:00:48]} Qf5+ {[%emt 0:01:18]} 27. Ka2 {[%emt 0:01:15]} Rxb5 {[%emt 0:01:11]} 28. g3 {[%emt 0:02:07]} Ne2 {[%emt 0:08:54]} 29. g4 {[%emt 0:03:34]} Qf2 {[%emt 0:00:14]} 30. R1d2 {[%emt 0:00:20]} Rab8 {[%emt 0:01:21]} 31. Qd1 {[%emt 0:00:17]} Rxb2+ {[%emt 0:01:51]} 32. Nxb2 {[%emt 0:02:12]} Nxc3+ {[%emt 0:00:12]} 33. Ka1 {[%emt 0:00:03]} Nxd1 {[%emt 0:01:28]} 34. Rxf2 {[%emt 0:00:43]} Nxf2 {[%emt 0:00:06]} 35. Rxh6 {[%emt 0:00:13]} Kg7 {[%emt 0:00:32]} 36. Ra6 {[%emt 0:00:37]} Nxh3 {[%emt 0:00:45]} 37. Nc4 {[%emt 0:02:35]} Rb4 {[%emt 0:00:38]} 38. Ne3 {[%emt 0:00:01]} Ra4+ {[%emt 0:00:26]} 39. Kb2 {[%emt 0:00:08]} Nf2 {[%emt 0:00:32]} 40. Kb3 {[%emt 0:07:09]} Rb4+ {[%emt 0:00:18]} 41. Kc3 {[%emt 0:00:15]} Nxg4 {[%emt 0:00:27]} 42. Rxa5 {[%emt 0:00:36]} Nxe3 {[%emt 0:00:48]} 43. Kxb4 {[%emt 0:00:04]} Kg6 {[%emt 0:00:11]} 44. Kc3 {[%emt 0:00:05]} f5 {[%emt 0:00:11]} 45. Kd3 {[%emt 0:00:01]} Ng2 {[%emt 0:00:41]} 46. Ke2 {[%emt 0:00:16]} g4 {[%emt 0:00:19]} 47. Kf2 {[%emt 0:00:02]} Nf4 {[%emt 0:00:20]} 48. Kg3 {[%emt 0:01:57]} Kg5 {[%emt 0:00:05]} 49. Rb5 {[%emt 0:00:06]} Ne2+ {[%emt 0:00:59]} 50. Kf2 {[%emt 0:00:16]} Nc3 {[%emt 0:00:20]} 51. Rb3 {[%emt 0:00:51]} Ne4+ {[%emt 0:00:43]} 52. Ke3 {[%emt 0:00:06]} Ng3 {[%emt 0:01:07]} 53. Rb5 {[%emt 0:00:43]} Nh5 {[%emt 0:00:33]} 54. Ra5 {[%emt 0:00:04]} Kf6 {[%emt 0:00:32]} 55. Rb5 {[%emt 0:00:04]} Ng7 {[%emt 0:00:28]} 56. Kf4 {[%emt 0:02:00]} Ne6+ {[%emt 0:00:07]} 57. Kg3 {[%emt 0:00:01]} Nd4 {[%emt 0:00:46]} 58. Ra5 {[%emt 0:01:13]} Kg5 {[%emt 0:00:37]} 59. Kf2 {[%emt 0:01:10]} Kf4 {[%emt 0:00:21]} 60. Ra4 {[%emt 0:00:03]} Ke5 {[%emt 0:00:33]} 61. Kg3 {[%emt 0:00:18]} Ne2+ {[%emt 0:00:23]} 62. Kf2 {[%emt 0:01:02]} Nc3 {[%emt 0:00:07]} 63. Ra5+ {[%emt 0:00:48]} Kf4 {[%emt 0:00:07]} 64. Ra3 {[%emt 0:00:38]} Ne4+ {[%emt 0:00:34]} 65. Kg2 {[%emt 0:00:06]} Kg5 {[%emt 0:01:18]} 66. Ra5 {[%emt 0:00:09]} Kf4 {[%emt 0:00:21]} 1/2-1/2

[Event "EYCC O18-ch 2024"]
[Site "Prague"]
[Date "2024.08.22"]
[Round "1.10"]
[White "Ozen, Metehan"]
[Black "Pyrih, Roman"]
[Result "0-1"]
[ECO "B96"]
[WhiteElo "2142"]
[BlackElo "2422"]
[Annotator "RC"]
[PlyCount "144"]
[EventDate "2024.08.19"]
[EventType "swiss"]
[EventCountry "CZE"]
[SourceTitle "playchess.com"]
[Source "ChessBase"]
[SourceQuality "1"]
[TimeControl "5400+30"]

1. e4 {[%emt 0:00:05]} c5 {[%emt 0:00:09]} 2. Nf3 {[%emt 0:00:08]} d6 {[%emt 0:00:05]} 3. d4 {[%emt 0:00:05]} cxd4 {[%emt 0:00:05]} 4. Nxd4 {[%emt 0:00:05]} Nf6 {[%emt 0:00:04]} 5. Nc3 {[%emt 0:00:07]} a6 {[%emt 0:00:05]} 6. Bg5 {[%emt 0:02:57]} e6 {[%emt 0:00:07]} 7. f4 {[%emt 0:00:19]} Nbd7 {[%emt 0:00:03]} 8. Qe2 {[%emt 0:00:24]} Qc7 {[%emt 0:00:02]} 9. O-O-O {[%emt 0:00:40]} b5 {[%emt 0:00:01]} 10. g4 {[%emt 0:03:56]} b4 {[%emt 0:03:28]} 11. Nd5 {[%emt 0:12:32]} exd5 {[%emt 0:01:23]} 12. exd5+ {[%emt 0:01:43]} Be7 {[%emt 0:00:04]} 13. Nc6 {[%emt 0:00:28]} Nb8 {[%emt 0:00:21]} 14. Bxf6 {[%emt 0:06:28]} gxf6 {[%emt 0:01:04]} 15. Nxe7 {[%emt 0:00:37]} Qxe7 {[%emt 0:00:06]} 16. Qd2 {[%emt 0:00:53]} Qc7 {[%emt 0:20:16]} 17. Qd4 {[%emt 0:10:44]} Nd7 {[%emt 0:00:57]} 18. Bh3 {[%emt 0:00:48]} Qb6 {[%emt 0:04:04]} 19. Qe4+ {[%emt 0:01:52]} Kf8 {[%emt 0:00:21]} 20. Rhe1 {[%emt 0:02:17]} Qd8 {[%emt 0:00:03]} 21. Qxb4 {[%emt 0:01:20]} Nc5 {[%emt 0:00:03]} 22. f5 {[%emt 0:02:40]} h6 {[%emt 0:02:07]} 23. Re3 {[%emt 0:04:08]} a5 {[%emt 0:01:44]} 24. Qf4 {[%emt 0:00:26]} Ra6 {[%emt 0:05:15]} 25. Rde1 {[%emt 0:01:53]} Kg7 {[%emt 0:00:44]} 26. Bf1 {[%emt 0:07:49]} Rb6 {[%emt 0:00:10]} 27. a3 {[%emt 0:08:48]} Nd7 {[%emt 0:00:18]} 28. Bc4 {[%emt 0:04:21]} Ne5 {[%emt 0:01:06]} 29. Ba2 {[%emt 0:00:37]} Bd7 {[%emt 0:01:14]} 30. h4 {[%emt 0:01:14]} a4 {[%emt 0:02:34]} 31. Rg1 {[%emt 0:01:20]} Kf8 {[%emt 0:00:02]} 32. Re4 {[%emt 0:04:22]} Rxb2 {[%emt 0:02:58]} 33. Kxb2 {[%emt 0:00:07]} Qb6+ {[%emt 0:00:02]} 34. Rb4 {[%emt 0:00:01]} Qxg1 {[%emt 0:00:01]} 35. Rb8+ {[%emt 0:00:38]} Kg7 {[%emt 0:00:02]} 36. Rxh8 {[%emt 0:00:22]} Kxh8 {[%emt 0:00:02]} 37. Qxh6+ {[%emt 0:00:01]} Kg8 {[%emt 0:00:01]} 38. Qxf6 {[%emt 0:00:47]} Qd4+ {[%emt 0:00:02]} 39. Kb1 {[%emt 0:00:29]} Qxg4 {[%emt 0:00:07]} 40. Qxd6 {[%emt 0:00:32]} Bxf5 {[%emt 0:00:43]} 41. Qb8+ {[%emt 0:02:06]} Kh7 {[%emt 0:00:03]} 42. Qc7 {[%emt 0:00:27]} Qd1+ {[%emt 0:00:17]} 43. Kb2 {[%emt 0:00:02]} Qd2 {[%emt 0:00:26]} 44. Kb1 {[%emt 0:00:21]} Kh6 {[%emt 0:05:58]} 45. d6 {[%emt 0:02:00]} f6 {[%emt 0:00:02]} 46. Qc5 {[%emt 0:01:32]} Kh5 {[%emt 0:02:11]} 47. Bf7+ {[%emt 0:00:08]} Kxh4 {[%emt 0:00:16]} 48. Be8 {[%emt 0:00:05]} Qe1+ {[%emt 0:04:36]} 49. Kb2 {[%emt 0:00:37]} Qe4 {[%emt 0:02:01]} 50. Bb5 {[%emt 0:01:04]} Bd7 {[%emt 0:02:11]} 51. Qf2+ {[%emt 0:01:28]} Kg5 {[%emt 0:00:03]} 52. Qg3+ {[%emt 0:00:19]} Kh6 {[%emt 0:01:33]} 53. Bxd7 {[%emt 0:00:03]} Qb7+ {[%emt 0:00:01]} 54. Kc1 {[%emt 0:00:51]} Qxd7 {[%emt 0:00:02]} 55. Qh2+ {[%emt 0:00:13]} Kg6 {[%emt 0:00:26]} 56. Qg2+ {[%emt 0:00:03]} Kf7 {[%emt 0:01:54]} 57. Qd5+ {[%emt 0:00:07]} Qe6 {[%emt 0:00:03]} 58. Qb7+ {[%emt 0:00:05]} Nd7 {[%emt 0:00:02]} 59. Qc6 {[%emt 0:00:08]} Qe1+ {[%emt 0:00:08]} 60. Kb2 {[%emt 0:00:05]} Qe5+ {[%emt 0:00:11]} 61. Kb1 {[%emt 0:00:24]} Nc5 {[%emt 0:01:52]} 62. Qc7+ {[%emt 0:01:29]} Ke6 {[%emt 0:00:13]} 63. Qe7+ {[%emt 0:00:16]} Kd5 {[%emt 0:00:04]} 64. Qf7+ {[%emt 0:01:02]} Kxd6 {[%emt 0:00:29]} 65. Qf8+ {[%emt 0:00:03]} Kd5 {[%emt 0:00:12]} 66. Qg8+ {[%emt 0:00:14]} Qe6 {[%emt 0:00:38]} 67. Qa8+ {[%emt 0:00:09]} Kd4 {[%emt 0:00:14]} 68. Qa5 {[%emt 0:00:14]} f5 {[%emt 0:01:19]} 69. Kb2 {[%emt 0:00:43]} Nd3+ {[%emt 0:00:32]} 70. cxd3 {[%emt 0:00:20]} Qb3+ {[%emt 0:00:01]} 71. Kc1 {[%emt 0:00:19]} Qc3+ {[%emt 0:00:02]} 72. Qxc3+ {[%emt 0:00:06]} Kxc3 {[%emt 0:00:02]} 0-1

[Event "EYCC O18-ch 2024"]
[Site "Prague"]
[Date "2024.08.22"]
[Round "1.10"]
[White "Rudzkis, Vilius"]
[Black "Falkevall, Axel"]
[Result "0-1"]
[ECO "D85"]
[WhiteElo "1993"]
[BlackElo "2325"]
[Annotator "RC"]
[PlyCount "64"]
[EventDate "2024.08.19"]
[EventType "swiss"]
[EventCountry "CZE"]
[SourceTitle "playchess.com"]
[Source "ChessBase"]
[SourceQuality "1"]
[TimeControl "5400+30"]

1. d4 {[%emt 0:00:43]} Nf6 {[%emt 0:00:08]} 2. c4 {[%emt 0:00:15]} g6 {[%emt 0:00:07]} 3. Nc3 {[%emt 0:00:20]} d5 {[%emt 0:00:06]} 4. cxd5 {[%emt 0:01:06]} Nxd5 {[%emt 0:01:47]} 5. Bd2 {[%emt 0:01:26]} c5 {[%emt 0:00:46]} 6. e4 {[%emt 0:01:29]} Nxc3 {[%emt 0:00:07]} 7. Bxc3 {[%emt 0:00:05]} cxd4 {[%emt 0:01:07]} 8. Qxd4 {[%emt 0:06:04]} Qxd4 {[%emt 0:00:08]} 9. Bxd4 {[%emt 0:00:04]} f6 {[%emt 0:00:09]} 10. Rc1 {[%emt 0:09:26]} Nc6 {[%emt 0:01:04]} 11. Be3 {[%emt 0:01:32]} e5 {[%emt 0:03:13]} 12. f3 {[%emt 0:04:11]} Bd7 {[%emt 0:15:40]} 13. Bc4 {[%emt 0:05:07]} Rc8 {[%emt 0:08:47]} 14. Bb3 {[%emt 0:02:44]} Bb4+ {[%emt 0:06:03]} 15. Kf2 {[%emt 0:00:45]} f5 {[%emt 0:05:04]} 16. exf5 {[%emt 0:14:47]} gxf5 {[%emt 0:00:48]} 17. a3 {[%emt 0:01:25]} Ba5 {[%emt 0:03:45]} 18. Ne2 {[%emt 0:02:49]} f4 {[%emt 0:07:29]} 19. Bc5 {[%emt 0:03:17]} b6 {[%emt 0:02:45]} 20. Bd6 {[%emt 0:02:41]} Bd2 {[%emt 0:01:48]} 21. Rc2 {[%emt 0:01:11]} Be3+ {[%emt 0:00:38]} 22. Ke1 {[%emt 0:00:30]} h5 {[%emt 0:03:30]} 23. Ba4 {[%emt 0:02:31]} Kf7 {[%emt 0:04:50]} 24. Bxc6 {[%emt 0:05:05]} Rxc6 {[%emt 0:00:38]} 25. Rxc6 {[%emt 0:01:37]} Bxc6 {[%emt 0:01:06]} 26. a4 {[%emt 0:11:52]} Ke6 {[%emt 0:02:52]} 27. Bb4 {[%emt 0:02:03]} Rg8 {[%emt 0:01:33]} 28. Kf1 {[%emt 0:01:56]} Rd8 {[%emt 0:01:38]} 29. Ke1 {[%emt 0:03:02]} a5 {[%emt 0:01:44]} 30. Ba3 {[%emt 0:01:26]} Bxa4 {[%emt 0:00:40]} 31. Nc3 {[%emt 0:00:14]} Bb3 {[%emt 0:00:52]} 32. g3 {[%emt 0:00:45]} b5 {[%emt 0:00:22]} 0-1

[Event "EYCC O18-ch 2024"]
[Site "Prague"]
[Date "2024.08.22"]
[Round "1.11"]
[White "Vergara Anton, Diego"]
[Black "Lang, Simon"]
[Result "1-0"]
[ECO "A46"]
[WhiteElo "2416"]
[BlackElo "2138"]
[Annotator "RC"]
[PlyCount "91"]
[EventDate "2024.08.19"]
[EventType "swiss"]
[EventCountry "CZE"]
[SourceTitle "playchess.com"]
[Source "ChessBase"]
[SourceQuality "1"]
[TimeControl "5400+30"]

1. d4 {[%emt 0:00:10]} Nf6 {[%emt 0:00:31]} 2. Nf3 {[%emt 0:00:09]} e6 {[%emt 0:00:30]} 3. e3 {[%emt 0:00:42]} b6 {[%emt 0:01:37]} 4. c4 {[%emt 0:00:30]} Bb7 {[%emt 0:01:07]} 5. Nc3 {[%emt 0:00:32]} g6 {[%emt 0:02:01]} 6. Bd3 {[%emt 0:01:26]} Bg7 {[%emt 0:01:31]} 7. e4 {[%emt 0:04:48]} d6 {[%emt 0:04:24]} 8. O-O {[%emt 0:03:03]} O-O {[%emt 0:00:26]} 9. h3 {[%emt 0:06:12]} c5 {[%emt 0:03:01]} 10. d5 {[%emt 0:12:31]} e5 {[%emt 0:06:04]} 11. Ne1 {[%emt 0:02:38]} Nh5 {[%emt 0:03:18]} 12. Be2 {[%emt 0:02:16]} Nf4 {[%emt 0:03:23]} 13. Bf3 {[%emt 0:03:22]} Nd7 {[%emt 0:07:47]} 14. Kh2 {[%emt 0:04:07]} g5 {[%emt 0:13:04]} 15. g3 {[%emt 0:02:09]} Ng6 16. Ng2 {[%emt 0:00:56]} h6 {[%emt 0:06:17]} 17. Ne3 {[%emt 0:02:34]} Nf6 {[%emt 0:01:22]} 18. Kg2 {[%emt 0:00:30]} Bc8 {[%emt 0:02:07]} 19. Rh1 Kh7 20. Nf5 {[%emt 0:06:32]} Ne7 {[%emt 0:16:22]} 21. Ne3 {[%emt 0:04:21]} Ng6 22. h4 {[%emt 0:01:48]} gxh4 {[%emt 0:12:33]} 23. Nf5 {[%emt 0:00:20]} Rg8 {[%emt 0:10:18]} 24. Nxh4 {[%emt 0:01:17]} Bf8 {[%emt 0:01:22]} 25. Nf5 {[%emt 0:05:07]} Bxf5 {[%emt 0:01:11]} 26. exf5 {[%emt 0:00:02]} Ne7 {[%emt 0:00:29]} 27. Qd2 {[%emt 0:03:22]} Nxf5 {[%emt 0:01:34]} 28. Qd3 {[%emt 0:00:30]} Qd7 {[%emt 0:01:06]} 29. Ne4 {[%emt 0:00:51]} Rg6 {[%emt 0:00:22]} 30. Nxf6+ {[%emt 0:00:50]} Rxf6 {[%emt 0:00:01]} 31. Bg4 {[%emt 0:01:24]} Kg8 {[%emt 0:01:07]} 32. Qe4 {[%emt 0:00:43]} Re8 {[%emt 0:00:51]} 33. Rh5 {[%emt 0:00:23]} Nxg3 {[%emt 0:00:41]} 34. Bxd7 {[%emt 0:02:46]} Nxe4 {[%emt 0:00:18]} 35. Bxe8 {[%emt 0:00:11]} Rxf2+ {[%emt 0:00:26]} 36. Kg1 {[%emt 0:00:21]} Rc2 {[%emt 0:00:17]} 37. Rh2 {[%emt 0:01:35]} Rxc4 {[%emt 0:00:18]} 38. Rg2+ {[%emt 0:00:07]} Kh8 {[%emt 0:00:13]} 39. Bxf7 {[%emt 0:00:08]} Bg7 {[%emt 0:00:19]} 40. Be3 {[%emt 0:02:24]} Nf6 {[%emt 0:00:20]} 41. Rf1 {[%emt 0:01:29]} Ng4 {[%emt 0:00:12]} 42. b3 {[%emt 0:00:24]} Rb4 {[%emt 0:00:56]} 43. Bd2 {[%emt 0:00:30]} Rd4 {[%emt 0:00:17]} 44. Bc3 {[%emt 0:00:06]} Re4 {[%emt 0:00:06]} 45. Bg6 {[%emt 0:00:14]} Re3 {[%emt 0:00:05]} 46. Bd2 {[%emt 0:00:19]} 1-0

[Event "EYCC O18-ch 2024"]
[Site "Prague"]
[Date "2024.08.22"]
[Round "1.11"]
[White "Koutlas, Nikolaos"]
[Black "Jusufi, Ahmet"]
[Result "1-0"]
[ECO "B50"]
[WhiteElo "2322"]
[BlackElo "1987"]
[Annotator "RC"]
[PlyCount "53"]
[EventDate "2024.08.19"]
[EventType "swiss"]
[EventCountry "CZE"]
[SourceTitle "playchess.com"]
[Source "ChessBase"]
[SourceQuality "1"]
[TimeControl "5400+30"]

1. e4 {[%emt 0:00:04]} c5 {[%emt 0:00:09]} 2. Nf3 {[%emt 0:00:14]} d6 {[%emt 0:00:08]} 3. Bc4 {[%emt 0:00:07]} Nc6 {[%emt 0:00:24]} 4. O-O {[%emt 0:01:14]} e6 {[%emt 0:01:28]} 5. Re1 {[%emt 0:03:27]} Be7 {[%emt 0:02:28]} 6. c3 {[%emt 0:03:10]} d5 {[%emt 0:09:58]} 7. exd5 {[%emt 0:04:53]} exd5 {[%emt 0:00:42]} 8. Bb5 {[%emt 0:00:30]} Nf6 {[%emt 0:12:14]} 9. Ne5 {[%emt 0:03:50]} Bd7 {[%emt 0:02:35]} 10. Bxc6 {[%emt 0:08:49]} Bxc6 {[%emt 0:05:51]} 11. Nxc6 {[%emt 0:04:11]} bxc6 {[%emt 0:01:36]} 12. Qe2 {[%emt 0:01:37]} Qd7 {[%emt 0:01:44]} 13. Kf1 {[%emt 0:00:34]} Kd8 {[%emt 0:16:11]} 14. d3 {[%emt 0:06:28]} Re8 {[%emt 0:02:03]} 15. Qf3 {[%emt 0:00:46]} Kc7 {[%emt 0:08:17]} 16. h3 {[%emt 0:07:01]} Bd6 {[%emt 0:00:59]} 17. Be3 {[%emt 0:02:21]} Rab8 {[%emt 0:03:59]} 18. Nd2 {[%emt 0:00:50]} Rxb2 {[%emt 0:10:26]} 19. Nb3 {[%emt 0:00:34]} c4 {[%emt 0:01:59]} 20. dxc4 {[%emt 0:00:18]} Ne4 {[%emt 0:06:19]} 21. cxd5 {[%emt 0:00:51]} cxd5 {[%emt 0:00:40]} 22. Kg1 {[%emt 0:02:32]} Re6 {[%emt 0:06:30]} 23. Bd4 {[%emt 0:06:30]} Be5 {[%emt 0:04:14]} 24. Nc5 {[%emt 0:03:01]} Nxc5 {[%emt 0:00:51]} 25. Bxe5+ {[%emt 0:00:20]} Kc8 {[%emt 0:00:42]} 26. c4 {[%emt 0:06:48]} Ne4 {[%emt 0:00:31]} 27. Bxb2 1-0